Cogmind - Beta 16 @@@ ROGUE MODE // 2025.12.21 @ 04:21:48 Player: Oneirical Result: Destroyed by 0P-ZPF(R) with Subdweller Laser Performance ------------- Evolutions (0) 0 Regions Visited (2) 400 Robots Destroyed (11) 55 Value Destroyed (180) 180 Prototype IDs (0) 0 Alien Tech Used (0) 0 Bonus (0) 0 TOTAL SCORE: 635 Bonus ------- None Cogmind --------- Core Integrity 0/250 Matter 300/300 Energy 96/100 System Corruption 3% Temperature Cool (6) Movement Rolling (100) Location -10/Subcaves Parts ------- > --- POWER (1) -------- (None) > --- PROPULSION (2) --- Compact Wheel > --- UTILITY (2) ------ Small Storage Unit Improved Terrain Scanner > --- WEAPON (2) ------- Mace Mace > --- INVENTORY (8) ---- Ion Engine Light Treads Flight Unit Particle Cannon Particle Cannon Subdweller Beam Cannon Grenade Launcher Mining Laser Peak State ------------ > --- POWER ------------ Light Ion Engine > --- PROPULSION ------- Flight Unit Flight Unit > --- UTILITY ---------- Small Storage Unit Improved Terrain Scanner > --- WEAPON ----------- Mace Mace > --- INVENTORY -------- Ion Engine Light Treads Wheel Compact Wheel Particle Cannon Particle Cannon Grenade Launcher Mining Laser [Rating: 12] Favorites ----------- Power Light Ion Engine Engine Light Ion Engine Propulsion Compact Wheel Wheel Compact Wheel Flight Unit Flight Unit Utility Small Storage Unit Device Improved Terrain Scanner Storage Small Storage Unit Weapon Mace Energy Gun Small Laser Ballistic Gun Light Assault Rifle Impact Weapon Mace Build | -11 -10 -10 ------- Run | Yrd Mat Sub Slots Evolved . | . . . Power . | . . . Propulsion . | . . . Utility . | . . . Weapon . | . . . Parts Attached 16 | 8 8 . Power 2 | 1 1 . Engine 2 | 1 1 . Core . | . . . Reactor . | . . . Propulsion 6 | 2 4 . Treads . | . . . Leg . | . . . Wheel 4 | 2 2 . Hover . | . . . Flight 2 | . 2 . Utility 3 | 2 1 . Device 2 | 1 1 . Storage 1 | 1 . . Processor . | . . . Hackware . | . . . Protection . | . . . Artifact . | . . . Weapon 5 | 3 2 . Energy Gun 2 | 2 . . Energy Cannon . | . . . Ballistic Gun 1 | 1 . . Ballistic Cannon . | . . . Launcher . | . . . Special Weapon . | . . . Impact Weapon 2 | . 2 . Slashing Weapon . | . . . Piercing Weapon . | . . . Special Melee Weapon . | . . . Unidentified Prototypes . | . . . Corrupted Parts 1 | . 1 . System Corruption 3 | . 3 . Parts Lost 5 | . 3 2 Power 2 | . 1 1 Propulsion 2 | . 1 1 Utility 1 | . 1 . Weapon . | . . . Highest Loss Streak 3 | . 3 2 To Critical Strikes . | . . . Average Backups 6 | 2 7 8 Power . | . . 1 Propulsion 2 | 1 2 2 Utility . | . . . Weapon 3 | . 4 4 Tool/Special . | . . . Unused Backups 9 | . 2 7 Power 1 | . . 1 Propulsion 1 | . . 1 Utility . | . . . Weapon 7 | . 2 5 Tool/Special . | . . . Average Slot Usage (%) 98 | . 97 100 Engine 13 | . 13 14 Wheel 24 | . 23 28 Flight 2 | . 3 . Device 13 | . 13 14 Storage 14 | . 14 14 Impact Weapon 27 | . 27 28 Peak Build Rating 12 | 7 12 12 Average Rating 10 | 5 10 11 On Entrance 6 | . 7 12 Avg Prop Armor Cover (%) . | . . . Naked Turns . | . . . Heaviest Build 15 | 13 15 13 Greatest Support 26 | 26 26 26 Greatest Overweight (x) 2 | . 2 . Average Overweight (x) . | . . . Largest Inventory Capacity 8 | 8 8 8 Average Capacity 7 | 7 8 8 Most Carried 8 | 4 8 8 Average Carried 6 | 2 7 8 Final Capacity 8 | 8 8 8 Final Carried 8 | 4 8 8 Class Distribution -------------------- 60% | Scavenger-Mutant 39% | Mutant Dominant Class ---------------- Scavenger-Mutant | -10/Materials Scavenger-Mutant | -10/Subcaves Resources | -11 -10 -10 ----------- Run | Yrd Mat Sub Matter Collected 361 | 137 131 93 Remotely . | . . . Salvage Created 353 | 137 162 54 Parts 18 | 11 7 . Haulers Intercepted 1 | . 1 . Recyclers Shooed 1 | 1 . . Parts Field Recycled . | . . . Retrieved Matter . | . . . Parts Self-Destructed . | . . . Prevented . | . . . Parts Restored . | . . . Kills | -11 -10 -10 ------- Run | Yrd Mat Sub Combat Hostiles Destroyed 6 | . 5 1 Melee 4 | . 3 1 Classes Destroyed 6 | 2 3 1 Tunneler 3 | 3 . . Hauler 1 | . 1 . Recycler 1 | 1 . . Swarmer 3 | . 3 . Grunt 2 | . 2 . Subdweller 1 | . . 1 Best Kill Streak 5 | 1 5 1 Combat Bots Only 5 | . 5 1 Max Kills in Single Turn 1 | 1 1 1 Gunslinging . | . . . Exploded . | . . . Melee 1 | . 1 1 Uniques/NPCs Destroyed . | . . . Combat | -11 -10 -10 -------- Run | Yrd Mat Sub Hostile Shots Fired 63 | . 54 9 Missed 17 | . 16 1 Hits 46 | . 38 8 Projectile 46 | . 38 8 AOE 5 | . . 5 Damage Taken 707 | . 377 330 Core 256 | . 153 103 Absorbed by Shields . | . . . Core Remaining (%) 100 | 100 . . Volleys Fired 19 | 19 . . Largest 2 | 2 . . Hottest 80 | 80 . . Shots Fired 38 | 38 . . Gun 38 | 38 . . Cannon . | . . . Launcher . | . . . Special . | . . . Kinetic 13 | 13 . . Thermal 19 | 19 . . Explosive . | . . . Electromagnetic 6 | 6 . . Robot Hit Streak 9 | 9 . . Robot Miss Streak 1 | 1 . . Penetration Max . | . . . Secondary Targets . | . . . Shots Hit Robots 46 | 27 14 5 Core Hits 12 | 7 4 1 Critical Kills 2 | . 1 1 Critical Parts Destroyed 4 | . 4 . Critical Strikes 6 | . 5 1 Smash 6 | . 5 1 Melee Attacks 31 | . 24 7 Impact 31 | . 24 7 Slashing . | . . . Piercing . | . . . Sneak Attacks 1 | . 1 . Combat Hostiles . | . . . Follow-up Attacks 5 | . 3 2 Damage Inflicted 833 | 278 418 137 Guns 278 | 278 . . Cannons . | . . . Explosions . | . . . Melee 555 | . 418 137 Ramming . | . . . Kinetic 73 | 73 . . Thermal 156 | 156 . . Explosive . | . . . Electromagnetic 49 | 49 . . Impact 555 | . 418 137 Slashing . | . . . Piercing . | . . . Highest Corruption 3 | . 3 3 Average Corruption 3 | . 3 3 Corruption Purged . | . . . Corruption Blocked . | . . . Effects 8 | . 4 4 Message Errors 2 | . 1 1 Matter Fused 1 | . . 1 Heat Flow Errors 3 | . 1 2 Energy Discharges 2 | . 2 . Overload Shots . | . . . Overflow Damage 149 | . 149 . Projectiles . | . . . Explosions . | . . . Melee 149 | . 149 . Knockbacks 3 | . 1 2 Impact 3 | . 1 2 Kinetic . | . . . Secondary . | . . . Self-Inflicted Damage . | . . . Shots . | . . . Rammed . | . . . Targets Rammed . | . . . Kicked . | . . . Crushed . | . . . Highest Temperature 179 | 72 137 179 Average Temperature 36 | 24 77 78 Received Heat Transfer 111 | . 99 12 Siege Activations . | . . . Martial Activations . | . . . Shielding Activations . | . . . Robots Disrupted . | . . . Combat Hostiles . | . . . Robots Corrupted 2 | . 2 . Combat Hostiles 2 | . 2 . Parts Fried 3 | . 3 . Impact Corruptions 6 | . 6 . Robots Melted . | . . . Combat Hostiles . | . . . Parts Melted . | . . . Heat Transferred 350 | 350 . . Parts Sabotaged . | . . . Parts Stolen . | . . . Parts Stripped . | . . . Power Chain Reactions . | . . . Alert | -11 -10 -10 ------- Run | Yrd Mat Sub Maximum Alert Level . | . . . Low Security (%) 100 | 100 100 . Level 1 . | . . . Level 2 . | . . . Level 3 . | . . . Level 4 . | . . . Level 5 . | . . . High Security . | . . . Max Security . | . . . Peak Influence 70 | 5 70 . Initial 3 | . 3 . Average 11 | . 15 . Influence Increases 155 | 20 135 . Destroy 0b10 Robot/C 100 | . 100 . Destroy 0b10 Robot/NC 25 | 20 5 . Destroy Leader 22 | . 22 . Successful Hack 8 | . 8 . Influence Decreases 155 | 15 140 . Entered New Map 2 | . 2 . Time Decay 123 | 15 108 . Lost Part 30 | . 30 . Squads Dispatched . | . . . Investigation . | . . . Extermination . | . . . Reinforcement . | . . . Assault . | . . . Garrison . | . . . Intercept . | . . . Searches Triggered . | . . . Construction Impeded . | . . . Haulers Reinforced . | . . . Active Scanning Responses . | . . . Cargo Convoy Interrupts . | . . . Stealth | -11 -10 -10 --------- Run | Yrd Mat Sub Distress Signals 2 | . 2 . Communications Jammed . | . . . Distress Signals . | . . . Times Spotted 16 | . 11 5 Peak Tracking Total 7 | . 7 3 Tactical Retreats . | . . . Traps | -11 -10 -10 ------- Run | Yrd Mat Sub Traps Triggered . | . . . Indirectly . | . . . Trap Hack Attempts . | . . . Triggered . | . . . Disarmed . | . . . Reprogrammed . | . . . Reused . | . . . Traps Extracted . | . . . Installed . | . . . Triggered . | . . . Machines | -11 -10 -10 ---------- Run | Yrd Mat Sub Machines Disabled . | . . . Max in Single Turn . | . . . Machines Repaired . | . . . Machines Dismantled . | . . . Machines Sabotaged . | . . . Overloaded Fab Kills . | . . . Hacking | -11 -10 -10 --------- Run | Yrd Mat Sub Machines Accessed 1 | . 1 . Terminals 1 | . 1 . Fabricators . | . . . Repair Stations . | . . . Recycling Units . | . . . Scanalyzers . | . . . Garrison Access . | . . . Total Hacks 4 | . 4 . Successful 2 | . 2 . Failed 2 | . 2 . Catastrophic . | . . . Database Lockouts . | . . . Manual 3 | . 3 . Terminals 4 | . 4 . Fabricators . | . . . Repair Stations . | . . . Recycling Units . | . . . Scanalyzers . | . . . Garrison Access . | . . . Terminal Hacks 2 | . 2 . Record 1 | . 1 . Branch Access Points 1 | . 1 . Fabricator Hacks . | . . . Repair Station Hacks . | . . . Recycling Unit Hacks . | . . . Scanalyzer . | . . . Garrison Access Hacks . | . . . Unauthorized Hacks . | . . . Terminals . | . . . Fabricators . | . . . Repair Stations . | . . . Recycling Units . | . . . Scanalyzers . | . . . Garrison Access . | . . . Data Cores Recovered . | . . . Used . | . . . Hacking Detections 1 | . 1 . Full Trace Events . | . . . Feedback Events . | . . . Feedback Blocked . | . . . Robot Schematics Acquired . | . . . Robots Built . | . . . Authchips . | . . . Time . | . . . Total Robot Build Rating . | . . . Part Schematics Acquired . | . . . Parts Built . | . . . Authchips . | . . . Time . | . . . Total Part Build Rating . | . . . Part Studies Acquired . | . . . Parts Repaired . | . . . Time . | . . . Parts Recycled . | . . . Recycled Matter . | . . . Retrieved Matter . | . . . Retrieved Components . | . . . Parts Scanalyzed . | . . . Part Schematics Acquired . | . . . Parts Damaged . | . . . Bothacking | -11 -10 -10 ------------ Run | Yrd Mat Sub Used RIF Installer . | . . . Robots Hacked . | . . . Non-combat . | . . . Combat . | . . . Robot Hacks Applied . | . . . Relay Couplers Released . | . . . Fabnet Peak Effective % . | . . . Robots Rewired . | . . . Allies Hacked . | . . . Hacks Repelled . | . . . Allies | -11 -10 -10 -------- Run | Yrd Mat Sub Total Allies . | . . . Largest Group . | . . . Highest-Rated Group . | . . . Highest-Rated Ally . | . . . Total Orders . | . . . Ally Attacks . | . . . Total Damage . | . . . Kills . | . . . Allies Corrupted . | . . . Allies Melted . | . . . Intel | -11 -10 -10 ------- Run | Yrd Mat Sub Active Infowar (turns) 637 | 2 423 212 Terrain 485 | . 273 212 Seismic 152 | 2 150 . Robot Analysis Total . | . . . Derelict Logs Recovered 1 | . . 1 Drone Launches . | . . . Drone Recoveries . | . . . Exploration | -11 -10 -10 ------------- Run | Yrd Mat Sub Turns Passed 835 | 169 454 212 Spaces Moved 561 | 104 239 218 Core 6 | 6 . . Treads . | . . . Legs . | . . . Wheels 515 | 98 199 218 Hover . | . . . Flight 40 | . 40 . Fastest Speed 50 | 50 90 90 Average Speed 91 | 87 95 90 Slowest Speed 205 | 100 205 90 Overloaded Moves . | . . . Propulsion Burnouts . | . . . Robots Hopped . | . . . Potential Cave-ins . | . . . Cave-ins Triggered . | . . . Exploration Rate (%) 22 | 5 46 15 Regions Visited 2 Branch Regions 1 Pre-discovered Areas . | . . . Known Exits Taken . | . . . Unknown Exits Taken 2 | 1 1 . Scrap Searched 4 | . . 4 Spaces Dug . | . . . Terrain Destroyed . | . . . Melee . | . . . Projectile . | . . . AOE . | . . . Terrain Rammed . | . . . Walls Destroyed . | . . . Machines Disabled . | . . . Actions | -11 -10 -10 --------- Run | Yrd Mat Sub Total 794 | 142 427 225 Wait 161 | 8 153 . Move 559 | 103 238 218 Hop . | . . . Pick Up 12 | 4 7 1 Fast Attach 9 | 7 2 . Attach 1 | . 1 . Detach . | . . . Swap 6 | 1 5 . Drop 3 | . 2 1 Fire 19 | 19 . . Melee 24 | . 19 5 Ram . | . . . Kick . | . . . Crush . | . . . Escape Stasis . | . . . Rewire . | . . . Trap . | . . . Miscellaneous . | . . . Route ------- -11/Scrapyard -10/Materials (discovered 3 exits: [*Mat] / *Min / [*Sub]) -10/Subcaves (discovered 1 exit: [*Mat]) History --------- Turn | Location | Event 16 | -11/Scrapyard | Discovered new exit (range 15) 170 | -11/Scrapyard | Entered Materials 215 | -10/Materials | Identified exit to Mines 308 | -10/Materials | Build established: Mutant 325 | -10/Materials | Core integrity fell below 50% 351 | -10/Materials | Lost 3 parts (1p1n1u) 412 | -10/Materials | Discovered new exit (range 15) 617 | -10/Materials | Discovered new exit (range 8) 624 | -10/Materials | Entered Subcaves 625 | -10/Subcaves | Approached by a straggling Scientist 631 | -10/Subcaves | Build established: Scavenger-Mutant 741 | -10/Subcaves | A swath of the cavern ceiling suddenly collapsed 770 | -10/Subcaves | Discovered new exit (range 7) 832 | -10/Subcaves | Ambushed by Subdweller buried in earth 832 | -10/Subcaves | Ambushed by Subdweller buried in earth 834 | -10/Subcaves | Ambushed by Subdweller buried in earth 835 | -10/Subcaves | Core integrity fell below 20% 836 | -10/Subcaves | Destroyed by 0P-ZPF(R) with Subdweller Laser Last Messages --------------- 00789_ Found Flamer. 00789_ Found 38 Matter. 00804_ System corrupted: Heat flow error (+125). 00820_ NP-TB9(R) suffers critical hit (Smash). 00820_ NP-TB9(R) destroyed. 00826_ Mace follow-up attack on 3I-17U(R). 00827_ System corrupted: Matter fused (-8). QV-F4V(c): "I think it's somewhere southwest of here" 00830_ 3I-17U(R) knocked back. [Achievement: Do Not Disturb] 00832_ Lgt. Ion Engine destroyed. 00833_ WJ-PGR(R): "ARGHSUB!" 00833_ 2P-Z6Y(R): "ARGHSUB!" 00833_ Acquired 3 matter. 00834_ Mace follow-up attack on 3I-17U(R). 00834_ 3I-17U(R) knocked back. 00835_ 0P-ZPF(R): "FREEEEDUMB!" 00836_ Wheel destroyed. 00836_ QV-F4V(c) destroyed. Map ----- +----------------------------------------------------+ | ???????????## ##??# ## #### ## # | | ???????#??### ###?# #???### "#" # | | ?????#????# ### #???????# ""##### | | ??????????# ##??????##""#"###? | | ??????????## #??????#""""#""#? | | ???????????### #??##??#""#""###? | | ?????????????################ ##?## #####"#""# ? | | ???????#????????????????????#####?## " "##"##"# ? | | ?????????????????#????????????????# # ""###"# ? | | ????????????#?????????????????????# "" #"#""# | | ??????????????????????????????????# ## #""###" | | ???????#??????????????????????#???# ### ###""# | | ???????????????????#??#???????????? ####"""## | | ????????????????????????????????????# ###"#"#"# ? | | ????????????????????????????????????# #"###"""#? | | ?????????????????#???????????#?????## """#??""""" | | ?????????????????????????????????#?# #""#??##""" | | ????????????????#??????????????????# ##"##???### | | ??????????????????????????????###?## ## #???### | | ??????????????????#????####### ### #??##%# | | ????????????????????#### # " ####|## | | ??????????????????###; # # % # | | ??????????????????# R # < ######### | | ?????????????????## R ;;# ##??#?????# | | ?????????????????## R ##??#??????? | | ?????????????????# R @ ## #?#????????? | | ?????????????????# ! ######???????#??? | | ?????????????????## ###???????#???????? | | ????????????????#?### #??????????????#??? | | ????????????????????# ##????#????????????? | | ????????????????????# "" ##????????#?????????? | | ????????????????????## """ #??#????????????????? | | ?????????????????????# ## ???????????????????? | | ????????????????????? ?# #??????????????????? | | ????????????????????& ?# #??????????????????? | | ??????????????????? ?? ##???????#??????????? | | ???????????????????? ??? ##???????????????????? | | ???????????????????????? ##?????#??????????????? | | ???????????????????????? ???#??????????????????? | | ???????????????????????? ??????????????????????? | | ????????????????????????? ??????????????????????? | | ?????????????????????????????????????????????????? | | ?????????????????????????????????????????????????? | | ?????????????????????????????????????????????????? | | ?????????????????????????????????????????????????? | | ?????????????????????????????????????????????????? | | ?????????????????????????????????????????????????? | | ?????????????????????????????????????????????????? | | ?????????????????????????????????????????????????? | | ?????????????????????????????????????????????????? | +----------------------------------------------------+ Best States ------------- Heat Dissipation 25 Energy Generation 10 Energy Capacity 250 Matter Stores 300 Matter Capacity 300 Sight Range 16 Terrain Scan Range 16 Terrain Scan Density 10 Evasion (%) 42 Item Schematics ----------------- None Robot Schematics ------------------ None Fabricated ------------ Nothing Repaired ---------- Nothing Studied --------- None Alien Tech Used ----------------- None Achievements -------------- Do Not Disturb Challenges ------------ None Game ------ Seed EtherialMissileSource Manual? 0 Play Time 00:08:25 Cumulative 40.7 hours Start 2025.12.21 @ 04:14:52 End 2025.12.21 @ 04:21:48 Sessions 1 Manual Loads 0 Difficulty Rogue Special Mode None Game No. 32 Rogue 30 Adventurer 2 Explorer 0 Win Type - Total 1 Types 0/0/0/1/0/0/0/0/0/0 Lore% 30 Gallery% 48 Achievement% 40 Wizard Run 0 Options --------- Layout 2 ASCII 0 Keyboard 1 Movement Numpad Keybinds 0 Fullscreen 1 Font 32/SmallcapsGlow Map View 50x49 Zoom Use 0% Tactical HUD 1 Map Filters NONE Filters NONE Steam 0 RUN: 85451aa6-10a0-466a-8e70-b6736629b184